Cogmind - Beta 10.2 @@@ ROGUE MODE // 2021.01.23 @ 13:20:57 Player: CrossedViper Result: Destroyed by 8R-AWN with 8R-AWN's Boregun Performance ------------- Evolutions (1) 500 Regions Visited (5) 1000 Robots Destroyed (88) 440 Value Destroyed (2162) 2162 Prototype IDs (27) 540 Alien Tech Used (0) 0 Bonus (103) 103 TOTAL SCORE: 4745 Bonus ------- High Alert Combat Kills 213 Follower Combat Kills 60 Aligned with FarCom 300 Friendly Fire -470 Cogmind --------- Core Integrity 0/400 Matter 179/300 Energy 150/150 System Corruption 6% Temperature Cool (0) Movement Walking (170) Ox2 Location -9/Exiles Parts ------- > --- POWER (1) -------- Light Angular Momentum Engine > --- PROPULSION (2) --- Potential Leg Potential Leg > --- UTILITY (4) ------ Humpback Humpback > --- WEAPON (2) ------- Heavy Assault Rifle Makeshift Axe > --- INVENTORY (44) --- Combat Airjet Cooling System High-capacity Storage Unit Large Matter Pod (73) Advanced Targeting Computer Advanced Beam Cannon Advanced Beam Cannon Light Assault Rifle Rocket Launcher Rocket Launcher Plasma Cutter Peak State ------------ > --- POWER ------------ Cooled Ion Engine > --- PROPULSION ------- Light Treads Light Treads > --- UTILITY ---------- Cooling System Humpback Medium Armor Plating > --- WEAPON ----------- Firepult > --- INVENTORY -------- Light Angular Momentum Engine Light Treads Light Treads Potential Leg Potential Leg Combat Airjet High-capacity Storage Unit Humpback Large Matter Pod Advanced Targeting Computer Core Shielding Advanced Beam Cannon Advanced Beam Cannon Light Assault Rifle Light Assault Rifle Heavy Assault Rifle Rocket Launcher Rocket Launcher Plasma Cutter Makeshift Axe [Rating: 37] Favorites ----------- Power Cooled Ion Engine Engine Cooled Ion Engine Propulsion Light Treads Treads Light Treads Leg Aluminum Leg Wheel Compact Wheel Utility Large Storage Unit Device Cooling System Storage Large Storage Unit Protection Medium Armor Plating Weapon High-powered Shotgun Energy Gun Beamcaster Energy Cannon Advanced Beam Cannon Ballistic Gun High-powered Shotgun Launcher Rocket Launcher Special Weapon Plasma Cutter Slashing Weapon Makeshift Axe Build | -11 -10 -10 -9 -9 -9 ------- Run | Scr Mat Min Mat Min Exi Slots Evolved 2 | . . . 2 . . Power . | . . . . . . Propulsion . | . . . . . . Utility 2 | . . . 2 . . Weapon . | . . . . . . Parts Attached 67 | . 9 4 31 7 16 Power 5 | . 1 . 3 . 1 Engine 5 | . 1 . 3 . 1 Core . | . . . . . . Reactor . | . . . . . . Propulsion 14 | . 3 . 5 2 4 Treads 10 | . 1 . 5 2 2 Leg 3 | . 1 . . . 2 Wheel 1 | . 1 . . . . Hover . | . . . . . . Flight . | . . . . . . Utility 20 | . 1 . 12 2 5 Device 3 | . . . 2 . 1 Storage 6 | . 1 . 3 . 2 Processor . | . . . . . . Hackware . | . . . . . . Protection 11 | . . . 7 2 2 Artifact . | . . . . . . Weapon 28 | . 4 4 11 3 6 Energy Gun 4 | . 2 2 . . . Energy Cannon 6 | . . . 5 . 1 Ballistic Gun 8 | . 2 . 2 2 2 Ballistic Cannon . | . . . . . . Launcher 4 | . . . 3 1 . Special Weapon 3 | . . 2 . . 1 Impact Weapon . | . . . . . . Slashing Weapon 3 | . . . 1 . 2 Piercing Weapon . | . . . . . . Special Melee Weapon . | . . . . . . Unidentified Prototypes 3 | . . . 3 . . Parts Lost 19 | . 3 . 5 4 7 Power . | . . . . . . Propulsion 7 | . . . 1 2 4 Utility 7 | . . . 3 2 2 Weapon 5 | . 3 . 1 . 1 Highest Loss Streak 6 | . 2 . 2 3 6 Average Slot Usage (%) 96 | . 85 100 97 99 91 Engine 11 | . 13 14 11 11 11 Treads 19 | . 1 14 20 22 20 Leg 1 | . 24 . . . 1 Wheel 1 | . 1 14 . . . Device 7 | . . . 8 11 9 Storage 21 | . 16 28 21 22 16 Protection 9 | . . . 12 10 11 Energy Gun 3 | . 13 12 1 . . Energy Cannon 4 | . . . 10 . . Ballistic Gun 13 | . 12 14 7 19 19 Launcher 1 | . . . 2 2 . Naked Turns . | . . . . . . Heaviest Build 119 | 11 19 23 56 55 119 Greatest Support 40 | 20 20 20 40 40 40 Greatest Overweight (x) 2 | . 1 1 2 1 2 Average Overweight (x) . | . . 1 . 1 1 Largest Inventory Capacity 44 | . 10 10 16 16 44 Average Capacity 15 | . 6 10 14 16 21 Most Carried 23 | . 10 10 16 16 23 Average Carried 13 | . 6 9 13 14 17 Final Capacity 44 | 6 10 10 16 16 44 Final Carried 16 | 6 9 10 16 15 11 Class Distribution -------------------- 87% | Mutant 7% | Hauler-Mutant 4% | Scavenger-Mutant Dominant Class ---------------- Mutant | -10/Materials Mutant | -10/Mines Mutant | -9/Materials Mutant | -9/Mines Mutant | -9/Exiles Resources | -11 -10 -10 -9 -9 -9 ----------- Run | Scr Mat Min Mat Min Exi Matter Collected 1438 | 200 95 107 588 371 77 Remotely . | . . . . . . Salvage Created 2831 | . 456 271 1742 258 104 Parts 166 | . 18 19 108 21 . Haulers Intercepted 4 | . . . 4 . . Recyclers Shooed 3 | . 1 . 2 . . Parts Field Recycled . | . . . . . . Retrieved Matter . | . . . . . . Parts Self-Destructed . | . . . . . . Prevented . | . . . . . . Kills | -11 -10 -10 -9 -9 -9 ------- Run | Scr Mat Min Mat Min Exi Combat Hostiles Destroyed 86 | . 11 5 38 25 7 Guns 31 | . 11 5 11 4 . Cannons 13 | . . . 12 . 1 AOE 42 | . . . 15 21 6 Classes Destroyed 15 | . 3 . 10 2 . Worker 3 | . . . 2 1 . Builder 2 | . . . 1 1 . Tunneler 1 | . . . 1 . . Hauler 4 | . . . 4 . . Recycler 4 | . 1 . 1 2 . Mechanic 1 | . . . 1 . . Watcher 3 | . . . 3 . . Swarmer 23 | . 3 3 6 11 . Grunt 27 | . 8 2 16 1 . Brawler 4 | . . . 4 . . Duelist 2 | . . . 1 1 . Protector 1 | . . . 1 . . Sentry 10 | . . . 10 . . Demolisher 1 | . . . . 1 . Assembled 18 | . . . . 11 7 Thug 2 | . . 2 . . . Best Kill Streak 11 | . 3 3 10 11 7 Combat Bots Only 11 | . 3 3 9 11 7 Max Kills in Single Turn 6 | . 1 1 4 6 3 Gunslinging . | . . . . . . Exploded 6 | . . . 4 6 3 Melee . | . . . . . . Uniques/NPCs Destroyed . | . . . . . . Combat | -11 -10 -10 -9 -9 -9 -------- Run | Scr Mat Min Mat Min Exi Damage Taken 4285 | . 501 180 1806 653 1145 Core 525 | . 72 42 193 36 182 Absorbed by Shields . | . . . . . . Core Remaining (%) 77 | 100 . 54 . . . Volleys Fired 221 | . 38 31 114 29 9 Largest 2 | . 2 2 2 2 1 Hottest 250 | . 80 95 143 48 250 Shots Fired 359 | . 62 42 197 49 9 Gun 230 | . 62 33 96 39 . Cannon 95 | . . . 89 . 6 Launcher 22 | . . . 12 10 . Special 12 | . . 9 . . 3 Kinetic 163 | . 38 13 73 39 . Thermal 171 | . 21 29 112 . 9 Explosive 22 | . . . 12 10 . Electromagnetic 3 | . 3 . . . . Robot Hit Streak 20 | . 10 7 20 8 4 Robot Miss Streak 6 | . 4 2 4 6 3 Penetration Max . | . . . . . . Secondary Targets 6 | . 2 1 1 2 . Max Gunslinging Chain 1 | . 1 1 1 1 . Shots Hit Robots 261 | . 43 28 131 26 33 Core Hits 166 | . 21 11 70 47 17 Critical Hits 11 | . . . 11 . . Critical Kills 3 | . . . 3 . . Critical Parts Destroyed 8 | . . . 8 . . Melee Attacks 38 | . . . 2 . 36 Impact . | . . . . . . Slashing 38 | . . . 2 . 36 Piercing . | . . . . . . Sneak Attacks . | . . . . . . Combat Hostiles . | . . . . . . Follow-up Attacks . | . . . . . . Damage Inflicted 7959 | . 527 403 3701 2027 1301 Guns 2442 | . 527 318 1228 369 . Cannons 1333 | . . . 1264 . 69 Explosions 2999 | . . . 1191 1590 218 Melee 981 | . . . . . 981 Ramming 86 | . . . 18 68 . Kinetic 1516 | . 291 64 792 369 . Thermal 2548 | . 189 339 1700 . 320 Explosive 2781 | . . . 1191 1590 . Electromagnetic 47 | . 47 . . . . Impact . | . . . . . . Slashing 981 | . . . . . 981 Piercing . | . . . . . . Highest Corruption 6 | . . . 3 6 6 Average Corruption 4 | . . . 2 5 6 Corruption Purged . | . . . . . . Effects 84 | . . . 20 33 31 Message Errors 21 | . . . 5 11 5 Matter Fused 14 | . . . . 5 9 Heat Flow Errors 9 | . . . 1 3 5 Energy Discharges 10 | . . . 4 1 5 Data Loss (minor) 15 | . . . 5 5 5 Data Loss (major) 3 | . . . . 3 . Misfires 2 | . . . . 2 . Targeting Errors 8 | . . . 3 3 2 Weapon Failures 2 | . . . 2 . . Overload Shots . | . . . . . . Overflow Damage 77 | . . . 13 55 9 Projectiles . | . . . . . . Explosions 77 | . . . 13 55 9 Melee . | . . . . . . Knockbacks 2 | . . . . 2 . Impact 2 | . . . . 2 . Kinetic . | . . . . . . Secondary . | . . . . . . Self-Inflicted Damage 108 | . . . 40 45 23 Shots 7 | . . . 3 2 2 Rammed 6 | . . . 1 5 . Targets Rammed 9 | . 1 . 1 7 . Kicked 1 | . 1 . . . . Crushed 2 | . . . . 2 . Highest Temperature 455 | . 58 326 344 191 455 Average Temperature 111 | . 24 127 125 90 146 Received Heat Transfer 795 | . 249 51 453 42 . Effects 8 | . . 2 6 . . Energy Bleed 4 | . . 1 3 . . Interference 3 | . . . 3 . . Damage (minor) 1 | . . 1 . . . Siege Activations . | . . . . . . Robots Corrupted . | . . . . . . Combat Hostiles . | . . . . . . Parts Fried 1 | . 1 . . . . Impact Corruptions . | . . . . . . Robots Melted . | . . . . . . Combat Hostiles . | . . . . . . Parts Melted 5 | . . 1 4 . . Heat Transferred 5721 | . 400 728 2886 . 1707 Parts Sabotaged . | . . . . . . Parts Stolen . | . . . . . . Parts Stripped . | . . . . . . Power Chain Reactions . | . . . . . . Missiles Intercepted . | . . . . . . Alert | -11 -10 -10 -9 -9 -9 ------- Run | Scr Mat Min Mat Min Exi Peak Influence 736 | . 265 180 736 491 . Initial 286 | . . 103 70 286 . Average 307 | . 114 118 383 317 . Maximum Alert Level 3 | . 1 . 3 2 . Low Security (%) 30 | . 77 100 15 8 . Level 1 40 | . 22 . 38 72 . Level 2 20 | . . . 29 19 . Level 3 8 | . . . 15 . . Level 4 . | . . . . . . Level 5 . | . . . . . . High Security . | . . . . . . Max Security . | . . . . . . Squads Dispatched 10 | . 3 1 6 . . Investigation 3 | . 1 . 2 . . Extermination . | . . . . . . Reinforcement 4 | . 2 . 2 . . Assault 3 | . . 1 2 . . Garrison . | . . . . . . Intercept . | . . . . . . Construction Impeded . | . . . . . . Haulers Reinforced . | . . . . . . Stealth | -11 -10 -10 -9 -9 -9 --------- Run | Scr Mat Min Mat Min Exi Distress Signals 6 | . 1 . 4 1 . Communications Jammed . | . . . . . . Distress Signals . | . . . . . . Times Spotted 122 | . 16 11 57 31 7 Peak Tracking Total 15 | . 5 4 5 15 9 Tactical Retreats 1 | . . 1 . . . Traps | -11 -10 -10 -9 -9 -9 ------- Run | Scr Mat Min Mat Min Exi Traps Triggered 5 | . 1 . 4 . . Indirectly . | . . . . . . Trap Hack Attempts . | . . . . . . Triggered . | . . . . . . Disarmed . | . . . . . . Reprogrammed . | . . . . . . Reused . | . . . . . . Traps Extracted . | . . . . . . Installed . | . . . . . . Triggered . | . . . . . . Machines | -11 -10 -10 -9 -9 -9 ---------- Run | Scr Mat Min Mat Min Exi Machines Disabled 11 | . . 1 5 1 4 Max in Single Turn 2 | . . 1 1 1 2 Machines Sabotaged . | . . . . . . Garrisons Compromised . | . . . . . . Overloaded Fab Kills . | . . . . . . Fab Network Shutdowns . | . . . . . . Hacking | -11 -10 -10 -9 -9 -9 --------- Run | Scr Mat Min Mat Min Exi Machines Accessed 11 | . 2 . 7 . 2 Terminals 4 | . 2 . 2 . . Fabricators . | . . . . . . Repair Stations 2 | . . . 2 . . Recycling Units 1 | . . . 1 . . Scanalyzers 2 | . . . 2 . . Garrison Access . | . . . . . . Total Hacks 30 | . 11 . 17 . 2 Successful 19 | . 3 . 14 . 2 Failed 11 | . 8 . 3 . . Catastrophic 1 | . . . 1 . . Database Lockouts . | . . . . . . Manual 16 | . 11 . 4 . 1 Terminals 18 | . 11 . 7 . . Fabricators . | . . . . . . Repair Stations 4 | . . . 4 . . Recycling Units 1 | . . . 1 . . Scanalyzers 5 | . . . 5 . . Garrison Access . | . . . . . . Terminal Hacks 9 | . 3 . 4 . 2 Record 1 | . . . . . 1 Robot Analysis 3 | . 2 . 1 . . Prototype ID Bank 1 | . . . 1 . . Branch Access Points 2 | . 1 . 1 . . Registered Components 1 | . . . 1 . . EX-Prototype ID Bank 1 | . . . . . 1 Fabricator Hacks . | . . . . . . Repair Station Hacks 4 | . . . 4 . . Scan Component 2 | . . . 2 . . Repair 2 | . . . 2 . . Recycling Unit Hacks . | . . . . . . Scanalyzer 5 | . . . 5 . . Insert Component 2 | . . . 2 . . Analyze 3 | . . . 3 . . Garrison Access Hacks . | . . . . . . Unauthorized Hacks 1 | . . . 1 . . Terminals . | . . . . . . Fabricators . | . . . . . . Repair Stations . | . . . . . . Recycling Units 1 | . . . 1 . . Tunnel 1 | . . . 1 . . Scanalyzers . | . . . . . . Garrison Access . | . . . . . . Data Cores Recovered . | . . . . . . Used . | . . . . . . Hacking Detections 5 | . 2 . 3 . . Full Trace Events 1 | . 1 . . . . Feedback Events . | . . . . . . Feedback Blocked . | . . . . . . Robot Schematics Acquired . | . . . . . . Robots Built . | . . . . . . Matter . | . . . . . . Time . | . . . . . . Total Robot Build Rating . | . . . . . . Part Schematics Acquired 2 | . . . 2 . . Parts Built . | . . . . . . Matter . | . . . . . . Time . | . . . . . . Total Part Build Rating . | . . . . . . Parts Repaired 2 | . . . 2 . . Time 77 | . . . 77 . . Parts Recycled . | . . . . . . Recycled Matter . | . . . . . . Retrieved Matter . | . . . . . . Retrieved Components . | . . . . . . Parts Scanalyzed 2 | . . . 2 . . Part Schematics Acquired 2 | . . . 2 . . Parts Damaged . | . . . . . . Bothacking | -11 -10 -10 -9 -9 -9 ------------ Run | Scr Mat Min Mat Min Exi Used RIF Installer . | . . . . . . Robots Hacked . | . . . . . . Non-combat . | . . . . . . Combat . | . . . . . . Robot Hacks Applied . | . . . . . . Relay Couplers Released . | . . . . . . Robots Rewired . | . . . . . . Allies Hacked . | . . . . . . Hacks Repelled . | . . . . . . Allies | -11 -10 -10 -9 -9 -9 -------- Run | Scr Mat Min Mat Min Exi Total Allies 4 | . . 3 . 1 . Largest Group 2 | . . 2 . 1 . Highest-Rated Group 41 | . . 41 . 31 . Highest-Rated Ally 31 | . . 31 . 31 . Total Orders . | . . . . . . Ally Attacks 17 | . . 8 . 9 . Total Damage 252 | . . 105 . 147 . Kills 5 | . . 2 . 3 . Allies Corrupted . | . . . . . . Allies Melted . | . . . . . . Intel | -11 -10 -10 -9 -9 -9 ------- Run | Scr Mat Min Mat Min Exi Robot Analysis Total 3 | . 2 . 1 . . Derelict Logs Recovered 3 | . . 2 . 1 . Drone Launches . | . . . . . . Drone Recoveries . | . . . . . . Exploration | -11 -10 -10 -9 -9 -9 ------------- Run | Scr Mat Min Mat Min Exi Turns Passed 5755 | . 358 666 2398 1307 1026 Spaces Moved 2857 | 1 169 509 1068 670 440 Core . | . . . . . . Treads 2187 | . . 9 1068 670 440 Legs 150 | 1 149 . . . . Wheels 520 | . 20 500 . . . Hover . | . . . . . . Flight . | . . . . . . Fastest Speed 110 | 120 110 110 160 180 180 Average Speed 164 | 120 118 111 177 180 188 Slowest Speed 200 | 120 120 180 200 180 200 Overloaded Moves . | . . . . . . Propulsion Burnouts . | . . . . . . Robots Hopped . | . . . . . . Cave-ins Triggered . | . . . . . . Exploration Rate (%) 62 | 2 28 89 91 99 68 Regions Visited 5 Branch Regions 3 Pre-discovered Areas 3 | . . . 1 1 1 Known Exits Taken 3 | . 1 1 1 . . Unknown Exits Taken 2 | 1 . . . 1 . Scrap Searched 2 | . . 1 . 1 . Spaces Dug 41 | . . . 2 39 . Terrain Destroyed 207 | . . . 85 103 19 Melee 2 | . . . 2 . . Projectile 3 | . . . . . 3 AOE 202 | . . . 83 103 16 Terrain Rammed . | . . . . . . Walls Destroyed . | . . . . . . Machines Disabled . | . . . . . . Actions | -11 -10 -10 -9 -9 -9 --------- Run | Scr Mat Min Mat Min Exi Total 3515 | . 268 562 1376 718 591 Wait 224 | . 39 10 106 1 68 Move 2852 | . 168 508 1067 669 440 Hop . | . . . . . . Pick Up 60 | . 9 5 32 4 10 Fast Attach 13 | . 3 . 8 . 2 Attach 30 | . 6 . 8 4 12 Detach 1 | . . . . . 1 Swap 24 | . . 4 15 3 2 Drop 43 | . 4 4 23 1 11 Fire 221 | . 38 31 114 29 9 Melee 38 | . . . 2 . 36 Ram . | . . . . . . Kick 1 | . 1 . . . . Crush 8 | . . . 1 7 . Escape Stasis . | . . . . . . Rewire . | . . . . . . Trap . | . . . . . . Miscellaneous . | . . . . . . Route ------- -11/Scrapyard -10/Materials (discovered 2 exits: *Min x2) -10/Mines -9/Materials (discovered 4 exits: *Mat x3 / *Min) -9/Mines (discovered 4 exits: *Mat x2 / *Exi / [*Zio]) -9/Exiles History --------- Turn | Location | Event 1 | -11/Scrapyard | Discovered new exit (range 0) 1 | -11/Scrapyard | Entered Materials 47 | -10/Materials | Identified exit to Mines 315 | -10/Materials | Build established: Mutant 359 | -10/Materials | Entered Mines 399 | -10/Mines | Learned 4 Materials zone layouts 403 | -10/Mines | Met a Derelict bent on vengeance 779 | -10/Mines | Met a Derelict testing a Signal Generator 840 | -10/Mines | A weapon hastily lodged in a ceiling crevice suddenly fell to the ground 993 | -10/Mines | Identified exit to Materials 1025 | -10/Mines | Entered Materials 1025 | -9/Materials | Evolved 2 slots: Utility x2 1026 | -9/Materials | Identified exit to Materials 1565 | -9/Materials | Discovered exit to Materials (range 3) 1711 | -9/Materials | Identified exit to Mines 2391 | -9/Materials | Repaired Lrg. Storage Unit 2841 | -9/Materials | Discovered exit to Materials (range 9) 3025 | -9/Materials | First assault squad dispatched 3062 | -9/Materials | Destroyed 9 combat bots 3184 | -9/Materials | Repaired Adv. Beam Cannon 3423 | -9/Materials | Entered Mines 3461 | -9/Mines | Received a Rocket Launcher from a helpful Derelict 3578 | -9/Mines | Received a Mining Laser from a helpful Derelict 3647 | -9/Mines | Discovered exit to Materials (range 10) 3652 | -9/Mines | Learned location of Zion (-7) 3660 | -9/Mines | A Derelict revealed a hidden shortcut to a safe place 3712 | -9/Mines | Assembled infested the area 3748 | -9/Mines | Destroyed 11 combat bots 3756 | -9/Mines | Core integrity fell below 50% 3778 | -9/Mines | Lost 3 parts (1n2u) 4088 | -9/Mines | Discovered exit to Materials (range 10) 4723 | -9/Mines | Deemed a non-threat by the Exiles lab entrance 4723 | -9/Mines | Discovered new exit (range 5) 4730 | -9/Mines | Entered Exiles 4775 | -9/Exiles | Met 8R-AWN 4947 | -9/Exiles | Met EX-HEX 5120 | -9/Exiles | Met EX-DEC 5264 | -9/Exiles | Met EX-BIN 5292 | -9/Exiles | Aligned with FarCom system 5294 | -9/Exiles | Given EX-Vault access code 5340 | -9/Exiles | Opened EX-Vault 5386 | -9/Exiles | Found Potential Leg 5389 | -9/Exiles | Found Potential Leg 5398 | -9/Exiles | Found Firepult 5443 | -9/Exiles | Warned to stay clear of 0b10 Research branches 5478 | -9/Exiles | Build established: Hauler-Mutant 5561 | -9/Exiles | Attacked by the Exiles 5615 | -9/Exiles | Destroyed 7 combat bots 5692 | -9/Exiles | Core integrity fell below 20% 5753 | -9/Exiles | Lost 6 parts (3n2u1w) 5756 | -9/Exiles | Destroyed by 8R-AWN with 8R-AWN's Boregun Last Messages --------------- 05710_ HV Slug penetrates Wall. 05710_ Penetrated by HV Slug. 05710_ HV Slug penetrates Wall. 05713_ Destroyed Prototype Protection. 05714_ Penetrated by HV Slug. 05714_ HV Slug penetrates Wall. 05718_ Penetrated by HV Slug. 05718_ HV Slug penetrates Wall. 05718_ Penetrated by HV Slug. 05718_ HV Slug penetrates Wall. 05722_ Penetrated by HV Slug. 05722_ Critical hit. 05722_ Lgt. Treads destroyed. 05726_ Penetrated by HV Slug. 05731_ HV Slug penetrates Wall. 05735_ Penetrated by HV Slug. 05740_ System corrupted: Mak. Axe targeting data glitched. 05743_ Penetrated by HV Slug. 05750_ System corrupted: Plasma Cutter targeting data glitched. 05752_ Penetrated by HV Slug. Map ----- +----------------------------------------------------+ | ?????????????????????????????????????????????????? | | ?????????????????????????????????????????????????? | | ?????????????????????????????????????????????????? | | ?????????????????????????????????????????????????? | | ?????????????????????????????????????????????????? | | ?????????????????????????????????????????????????? | | ?????????????????????????????????????????????????? | | ?????????????????????????????????????????????????? | | ?????????????????????????????????????????????????? | | ?????????????????????????????????????????????????? | | ?????????????????????????????????????????????????? | | ?????????????????????????????????????????????????? | | ?????????????????????????????????????????????????? | | ?????????????????????????????????????????????????? | | ?????????????????????????????????????????????????? | | ?????????????????????????????????????????????????? | | ?????????? ??????????????#######?????????????????? | | ????????? ######???????#!!! "#?????????????????? | | ????????? #""#??????# "#?????????????????? | | ????????? ??????# "#?????????????????? | | ?????????" #????## ""#????????????###### | | ?????????" #####" ""#??????????? """# | | ??????????# ##" ""#??????????#"" """# | | ???????????# #"" #????????????#"" # | | ??????????????# g #????????????#"" # | | ??????????????#### @ ##???????????#"" "# | | ?????????????????### ##??????????? ""# | | ???????????########" *]% ##???????????" ""? | | ???????????# !!"""" [% #??????# #?? | | ???????????#! # % ##???### ### | | ???????????#! "##;# % #####X# #"# | | ???????????#! ### # "" | | ???????????# !" " ""#;"?# # ; "" | | ???????????########## #?# ##;# " | | ????????????????????# #?? ?? ### | | ????????????????????###?? ??##?#;# | | ????????????????????????? ???????## | | ????????????????????????? ????????## | | ????????????????????????? ?????????##" | | ????????????????????????? ??????????#""" | | ????????????????????????? ?????????##" | | ???????????????????????????????????#"" | | ???????????????????????????????????#""" | | ??????????????????????????????????#""" " | | ??????????????????????????????????#""" | | ??????????????????????????????????#"" | | ??????????????????????????????????#""" | | ??????????????????????????????????#"" | | ??????????????????????????????????##"" | | ???????????????????????????????????#"""" | +----------------------------------------------------+ Best States ------------- Heat Dissipation 50 Energy Generation 18 Energy Capacity 280 Matter Stores 300 Matter Capacity 300 Sight Range 16 Terrain Scan Density 10 Armor Coverage 225 Core Shielding 20 Evasion (%) 40 Recoil Reduction 2 Item Schematics ----------------- Adv. Beam Cannon | -9/Materials | Scanalyzed Beamcaster | -9/Materials | Scanalyzed Robot Schematics ------------------ None Fabricated ------------ Nothing Alien Tech Used ----------------- None Achievements -------------- None Challenges ------------ None Game ------ Seed GuidedMiniHammer Manual? 0 Play Time 00:28:12 Cumulative 268.0 hours Start 2021.01.23 @ 12:53:29 End 2021.01.23 @ 13:20:57 Sessions 1 Manual Loads 0 Difficulty Rogue Special Mode None Game No. 228 Rogue 221 Adventurer 0 Explorer 7 Win Type - Total 7 Types 2/0/5/0/0/0/0/0/0 Lore% 74 Gallery% 91 Achievement% 71 Wizard Run 0 Options --------- ASCII 0 Keyboard 0 Movement Mouse Keybinds 0 Fullscreen 1 Font 18/X11 Map View 76x50 Tactical HUD 1 Map Filters NONE Filters NONE Steam 1 RUN: 810fc7ca-468b-4338-916d-b7d83783fb11